[Event "*** Titled Tuesday Blitz"]
[Site "Chess.com"]
[Date "2020.04.14"]
[Round "2"]
[White "anushanlv"]
[Black "mortngabriel"]
[Result "1-0"]
[WhiteElo "2128"]
[BlackElo "2385"]
[TimeControl "180+1"]
[EndTime "10:17:48 PDT"]
[Termination "anushanlv won by resignation"]

1. Nf3 {[%clk 0:03:00.7]} 1... Nf6 {[%clk 0:02:59.8]} 2. d4 {[%clk 0:02:58.9]}
2... e6 {[%clk 0:02:59.7]} 3. e3 {[%clk 0:02:58.4]} 3... d5 {[%clk 0:02:57.8]}
4. c4 {[%clk 0:02:57.8]} 4... b6 {[%clk 0:02:53.8]} 5. Nc3 {[%clk 0:02:55.8]}
5... Bb7 {[%clk 0:02:43.9]} 6. cxd5 {[%clk 0:02:56.1]} 6... Nxd5 {[%clk
0:02:42.9]} 7. Bd3 {[%clk 0:02:56.8]} 7... Be7 {[%clk 0:02:30.8]} 8. O-O {[%clk
0:02:56.4]} 8... O-O {[%clk 0:02:30.2]} 9. Nxd5 {[%clk 0:02:56.9]} 9... exd5
{[%clk 0:02:24.6]} 10. b3 {[%clk 0:02:56.8]} 10... Nd7 {[%clk 0:02:21.9]} 11.
Bb2 {[%clk 0:02:57]} 11... Nf6 {[%clk 0:02:18.4]} 12. Rc1 {[%clk 0:02:55.6]}
12... c5 {[%clk 0:02:16]} 13. Qe2 {[%clk 0:02:54.9]} 13... Rc8 {[%clk
0:02:12.7]} 14. Rfd1 {[%clk 0:02:54.6]} 14... Re8 {[%clk 0:02:10.8]} 15. Bb5
{[%clk 0:02:48.7]} 15... Bc6 {[%clk 0:02:10.5]} 16. Bxc6 {[%clk 0:02:47.3]}
16... Rxc6 {[%clk 0:02:11.4]} 17. h3 {[%clk 0:02:25.6]} 17... h6 {[%clk
0:02:05]} 18. Rc2 {[%clk 0:02:19.2]} 18... Ne4 {[%clk 0:01:41]} 19. Rdc1 {[%clk
0:02:17.3]} 19... Bf6 {[%clk 0:01:21.1]} 20. Nd2 {[%clk 0:02:11.3]} 20... Qe7
{[%clk 0:00:56.3]} 21. Nxe4 {[%clk 0:02:08.3]} 21... Qxe4 {[%clk 0:00:54.7]} 22.
dxc5 {[%clk 0:01:50.5]} 22... Bxb2 {[%clk 0:00:55.6]} 23. Rxb2 {[%clk
0:01:50.2]} 23... bxc5 {[%clk 0:00:56.1]} 24. Qb5 {[%clk 0:01:35.5]} 24... Rec8
{[%clk 0:00:55]} 25. Rbc2 {[%clk 0:01:33.9]} 25... Qe7 {[%clk 0:00:46.3]} 26.
Rd1 {[%clk 0:01:31.2]} 26... Qe6 {[%clk 0:00:33]} 27. Rcd2 {[%clk 0:01:30.9]}
27... Rd6 {[%clk 0:00:32.6]} 28. Qb7 {[%clk 0:01:28]} 28... a6 {[%clk
0:00:28.8]} 29. Rxd5 {[%clk 0:01:25.8]} 29... Rxd5 {[%clk 0:00:27.5]} 30. Qxd5
{[%clk 0:01:24.6]} 30... Qxd5 {[%clk 0:00:27.5]} 31. Rxd5 {[%clk 0:01:24.5]}
31... c4 {[%clk 0:00:28.4]} 32. bxc4 {[%clk 0:01:22.9]} 32... Rxc4 {[%clk
0:00:29.3]} 33. Ra5 {[%clk 0:01:23.4]} 33... Rc6 {[%clk 0:00:28]} 34. g4 {[%clk
0:01:24]} 34... Kf8 {[%clk 0:00:27.4]} 35. Kg2 {[%clk 0:01:24.1]} 35... Ke7
{[%clk 0:00:27.9]} 36. h4 {[%clk 0:01:23.7]} 36... Kd6 {[%clk 0:00:28.3]} 37. h5
{[%clk 0:01:24]} 37... Kc7 {[%clk 0:00:28.4]} 38. Kg3 {[%clk 0:01:23.6]} 38...
Kb6 {[%clk 0:00:28.6]} 39. Rf5 {[%clk 0:01:21.9]} 39... f6 {[%clk 0:00:28.6]}
40. Rd5 {[%clk 0:01:21]} 40... Rc7 {[%clk 0:00:25.9]} 41. Kf4 {[%clk 0:01:19.4]}
41... Rc2 {[%clk 0:00:25.2]} 42. f3 {[%clk 0:01:18.4]} 42... Kc6 {[%clk
0:00:24.9]} 43. Ra5 {[%clk 0:01:17.1]} 43... Kb6 {[%clk 0:00:25.3]} 44. Ra3
{[%clk 0:01:16.8]} 44... Rc5 {[%clk 0:00:25.2]} 45. e4 {[%clk 0:01:15.1]} 45...
a5 {[%clk 0:00:24.5]} 46. Rd3 {[%clk 0:01:14.7]} 46... Kc6 {[%clk 0:00:24.9]}
47. Rd8 {[%clk 0:01:08.1]} 47... Kb5 {[%clk 0:00:19.7]} 48. Rd5 {[%clk
0:01:06.8]} 48... a4 {[%clk 0:00:12.6]} 49. Kf5 {[%clk 0:01:05.3]} 49... a3
{[%clk 0:00:08]} 50. Kg6 {[%clk 0:01:04.2]} 50... Kc4 {[%clk 0:00:04.3]} 51.
Rxc5+ {[%clk 0:01:03.7]} 51... Kxc5 {[%clk 0:00:05.2]} 52. Kxg7 {[%clk
0:01:04.1]} 52... Kb4 {[%clk 0:00:06.1]} 53. Kxh6 {[%clk 0:01:03.6]} 53... Kc3
{[%clk 0:00:07]} 54. Kg6 {[%clk 0:01:03.6]} 54... Kb2 {[%clk 0:00:07.9]} 55. h6
{[%clk 0:01:03.9]} 55... Kxa2 {[%clk 0:00:08.8]} 56. h7 {[%clk 0:01:04.2]} 56...
Kb3 {[%clk 0:00:09.4]} 57. h8=Q {[%clk 0:01:04.1]} 57... a2 {[%clk 0:00:10.3]}
58. Qxf6 {[%clk 0:01:04.4]} 1-0

[Event "*** Titled Tuesday Blitz"]
[Site "Chess.com"]
[Date "2020.04.14"]
[Round "2"]
[White "stanyga"]
[Black "NormWeinstein"]
[Result "1-0"]
[WhiteElo "2670"]
[BlackElo "2352"]
[TimeControl "180+1"]
[EndTime "10:17:50 PDT"]
[Termination "stanyga won on time"]

1. e4 {[%clk 0:03:00.9]} 1... c5 {[%clk 0:02:59.7]} 2. Nf3 {[%clk 0:03:00.9]}
2... d6 {[%clk 0:03:00.2]} 3. Bb5+ {[%clk 0:03:00.7]} 3... Bd7 {[%clk
0:02:59.2]} 4. Bxd7+ {[%clk 0:03:00.6]} 4... Nxd7 {[%clk 0:02:59.8]} 5. O-O
{[%clk 0:03:00.6]} 5... Ngf6 {[%clk 0:03:00.3]} 6. Re1 {[%clk 0:03:00.1]} 6...
e6 {[%clk 0:03:00.8]} 7. d4 {[%clk 0:02:59.9]} 7... cxd4 {[%clk 0:02:59.5]} 8.
Nxd4 {[%clk 0:03:00.6]} 8... a6 {[%clk 0:02:59.1]} 9. c4 {[%clk 0:03:00.7]} 9...
Be7 {[%clk 0:02:55.6]} 10. b3 {[%clk 0:03:00.7]} 10... O-O {[%clk 0:02:54.8]}
11. Bb2 {[%clk 0:03:00.6]} 11... Qc7 {[%clk 0:02:54.5]} 12. Nc3 {[%clk
0:03:00.5]} 12... Rad8 {[%clk 0:02:54.4]} 13. Rc1 {[%clk 0:02:59.2]} 13... Rfe8
{[%clk 0:02:54.2]} 14. Qd2 {[%clk 0:02:51.2]} 14... Bf8 {[%clk 0:02:53.7]} 15.
f3 {[%clk 0:02:48.3]} 15... g6 {[%clk 0:02:52]} 16. Red1 {[%clk 0:02:47.3]}
16... b6 {[%clk 0:02:49.5]} 17. Qf2 {[%clk 0:02:27.6]} 17... Qb7 {[%clk
0:02:46.3]} 18. Nde2 {[%clk 0:02:24]} 18... Rc8 {[%clk 0:02:31.8]} 19. Nb1
{[%clk 0:01:53.4]} 19... Be7 {[%clk 0:02:23.5]} 20. Nf4 {[%clk 0:01:49.9]} 20...
b5 {[%clk 0:02:16.2]} 21. Na3 {[%clk 0:01:45.8]} 21... Rc7 {[%clk 0:01:46.5]}
22. Qe2 {[%clk 0:01:36.7]} 22... Rb8 {[%clk 0:01:40.5]} 23. Kh1 {[%clk
0:01:32.6]} 23... Bf8 {[%clk 0:01:18.7]} 24. Nd3 {[%clk 0:01:29.5]} 24... Be7
{[%clk 0:01:14.9]} 25. e5 {[%clk 0:01:19.4]} 25... dxe5 {[%clk 0:01:13.4]} 26.
Nxe5 {[%clk 0:01:19.5]} 26... Nxe5 {[%clk 0:01:13.1]} 27. Qxe5 {[%clk
0:01:20.4]} 27... Rc5 {[%clk 0:01:06.4]} 28. Qe3 {[%clk 0:01:10.2]} 28... bxc4
{[%clk 0:00:56]} 29. Bxf6 {[%clk 0:01:05.2]} 29... cxb3 {[%clk 0:00:37.5]} 30.
Rxc5 {[%clk 0:00:56.1]} 30... Bxc5 {[%clk 0:00:30.6]} 31. Qxc5 {[%clk
0:00:54.6]} 31... bxa2 {[%clk 0:00:30.5]} 32. h3 {[%clk 0:00:36.3]} 32... Qb3
{[%clk 0:00:24.4]} 33. Qc1 {[%clk 0:00:24.7]} 33... a5 {[%clk 0:00:19]} 34. Qh6
{[%clk 0:00:19.1]} 34... Qxd1+ {[%clk 0:00:16.5]} 35. Kh2 {[%clk 0:00:19.3]}
35... Qd6+ {[%clk 0:00:16.7]} 36. g3 {[%clk 0:00:13.4]} 36... Qf8 {[%clk
0:00:16.7]} 37. Qf4 {[%clk 0:00:11.9]} 37... Rb1 {[%clk 0:00:13.3]} 38. Qe4
{[%clk 0:00:06.5]} 38... a1=Q {[%clk 0:00:10.3]} 39. Bxa1 {[%clk 0:00:06.7]}
39... Rxa1 {[%clk 0:00:09.9]} 40. Nc4 {[%clk 0:00:07.3]} 40... Ra4 {[%clk
0:00:06.5]} 41. Qc2 {[%clk 0:00:06.1]} 41... Qe8 {[%clk 0:00:01.1]} 42. Ne5
{[%clk 0:00:06.9]} 1-0

[Event "*** Titled Tuesday Blitz"]
[Site "Chess.com"]
[Date "2020.04.14"]
[Round "2"]
[White "willc-h99"]
[Black "swisspower96"]
[Result "0-1"]
[WhiteElo "2320"]
[BlackElo "2662"]
[TimeControl "180+1"]
[EndTime "10:17:51 PDT"]
[Termination "swisspower96 won on time"]

1. c4 {[%clk 0:03:00.9]} 1... e5 {[%clk 0:02:59.6]} 2. g3 {[%clk 0:03:01.3]}
2... Nf6 {[%clk 0:02:59.6]} 3. Bg2 {[%clk 0:03:01.8]} 3... Bc5 {[%clk 0:02:50]}
4. Nc3 {[%clk 0:03:01.4]} 4... c6 {[%clk 0:02:49.5]} 5. e3 {[%clk 0:03:01.2]}
5... O-O {[%clk 0:02:46.1]} 6. Nge2 {[%clk 0:03:00.7]} 6... Re8 {[%clk
0:02:41.6]} 7. O-O {[%clk 0:03:00.5]} 7... e4 {[%clk 0:02:37.9]} 8. d3 {[%clk
0:02:45.7]} 8... exd3 {[%clk 0:02:36.8]} 9. Qxd3 {[%clk 0:02:46.6]} 9... d6
{[%clk 0:02:37.4]} 10. Na4 {[%clk 0:02:27.9]} 10... Nbd7 {[%clk 0:02:35.4]} 11.
b3 {[%clk 0:02:06]} 11... h5 {[%clk 0:02:29.3]} 12. Bb2 {[%clk 0:01:59.1]} 12...
h4 {[%clk 0:02:27.4]} 13. Nxc5 {[%clk 0:01:53.9]} 13... Nxc5 {[%clk 0:02:24.1]}
14. Qc2 {[%clk 0:01:48.8]} 14... Bg4 {[%clk 0:01:55.1]} 15. Nf4 {[%clk
0:01:46.4]} 15... Nh7 {[%clk 0:01:39.6]} 16. b4 {[%clk 0:01:23.8]} 16... Nd7
{[%clk 0:01:36.2]} 17. h3 {[%clk 0:01:17.8]} 17... Be6 {[%clk 0:01:31.6]} 18.
Nh5 {[%clk 0:01:02.2]} 18... f6 {[%clk 0:00:46.4]} 19. Qg6 {[%clk 0:00:44.7]}
19... Qe7 {[%clk 0:00:46.4]} 20. gxh4 {[%clk 0:00:41.9]} 20... Qf7 {[%clk
0:00:37.7]} 21. Qxf7+ {[%clk 0:00:30.6]} 21... Bxf7 {[%clk 0:00:38.6]} 22. Nf4
{[%clk 0:00:30.9]} 22... Bxc4 {[%clk 0:00:36.7]} 23. Rfd1 {[%clk 0:00:30.8]}
23... d5 {[%clk 0:00:37.3]} 24. a3 {[%clk 0:00:25.3]} 24... Nb6 {[%clk
0:00:35.2]} 25. Rac1 {[%clk 0:00:23.9]} 25... a5 {[%clk 0:00:34.5]} 26. Bc3
{[%clk 0:00:18.8]} 26... Na4 {[%clk 0:00:33.3]} 27. Be1 {[%clk 0:00:18]} 27...
Nf8 {[%clk 0:00:22.6]} 28. e4 {[%clk 0:00:18]} 28... Bb3 {[%clk 0:00:15.7]} 29.
Rd3 {[%clk 0:00:17.3]} 29... Bc4 {[%clk 0:00:14.8]} 30. Rdd1 {[%clk 0:00:17.3]}
30... Nb6 {[%clk 0:00:09.3]} 31. bxa5 {[%clk 0:00:16]} 31... Na4 {[%clk
0:00:06.7]} 32. exd5 {[%clk 0:00:16.9]} 32... cxd5 {[%clk 0:00:07.2]} 33. Bxd5+
{[%clk 0:00:12.8]} 33... Bxd5 {[%clk 0:00:07]} 34. Nxd5 {[%clk 0:00:13.7]} 34...
Red8 {[%clk 0:00:05.6]} 35. Rc7 {[%clk 0:00:07.3]} 35... Ne6 {[%clk 0:00:03.3]}
36. Ne7+ {[%clk 0:00:06.9]} 36... Kh7 {[%clk 0:00:03.2]} 37. Rxd8 {[%clk
0:00:07.2]} 37... Rxd8 {[%clk 0:00:02.9]} 38. Rxb7 {[%clk 0:00:07.1]} 38... Nac5
{[%clk 0:00:03.4]} 39. Rb6 {[%clk 0:00:06.5]} 39... Rd1 {[%clk 0:00:04]} 40. Kf1
{[%clk 0:00:06]} 40... Nf4 {[%clk 0:00:04.7]} 41. Nf5 {[%clk 0:00:02.4]} 41...
Ncd3 {[%clk 0:00:05.2]} 0-1

[Event "*** Titled Tuesday Blitz"]
[Site "Chess.com"]
[Date "2020.04.14"]
[Round "2"]
[White "Mourinho_Jose"]
[Black "Training_Day"]
[Result "1-0"]
[WhiteElo "2634"]
[BlackElo "2311"]
[TimeControl "180+1"]
[EndTime "10:17:51 PDT"]
[Termination "Mourinho_Jose won on time"]

1. Nf3 {[%clk 0:03:00.9]} 1... d5 {[%clk 0:02:59.9]} 2. g3 {[%clk 0:02:59]} 2...
c6 {[%clk 0:02:59.9]} 3. Bg2 {[%clk 0:02:58.9]} 3... Bg4 {[%clk 0:03:00.6]} 4.
O-O {[%clk 0:02:59.2]} 4... e6 {[%clk 0:03:01.1]} 5. d4 {[%clk 0:02:57.6]} 5...
Nf6 {[%clk 0:02:59.7]} 6. Nbd2 {[%clk 0:02:57.5]} 6... Nbd7 {[%clk 0:02:57.2]}
7. Re1 {[%clk 0:02:57.9]} 7... Be7 {[%clk 0:02:57]} 8. e4 {[%clk 0:02:58.3]}
8... O-O {[%clk 0:02:56.9]} 9. c3 {[%clk 0:02:57.8]} 9... h6 {[%clk 0:02:56.6]}
10. Qb3 {[%clk 0:02:56.9]} 10... dxe4 {[%clk 0:02:25.4]} 11. Nxe4 {[%clk
0:02:56.6]} 11... Qb6 {[%clk 0:02:23.8]} 12. Nxf6+ {[%clk 0:02:50.8]} 12... Nxf6
{[%clk 0:02:21.8]} 13. Ne5 {[%clk 0:02:50.9]} 13... Bf5 {[%clk 0:02:19]} 14. Nc4
{[%clk 0:02:50.4]} 14... Qxb3 {[%clk 0:01:59.3]} 15. axb3 {[%clk 0:02:51.3]}
15... Rfd8 {[%clk 0:01:58.8]} 16. Na5 {[%clk 0:02:49.5]} 16... Rab8 {[%clk
0:01:42.4]} 17. Bf4 {[%clk 0:02:48.8]} 17... Bd6 {[%clk 0:01:42.7]} 18. Bxd6
{[%clk 0:02:49.1]} 18... Rxd6 {[%clk 0:01:42.5]} 19. Nc4 {[%clk 0:02:49.6]}
19... Rdd8 {[%clk 0:01:22.4]} 20. Rxa7 {[%clk 0:02:49.2]} 20... Nd5 {[%clk
0:00:53.1]} 21. Na5 {[%clk 0:02:46.5]} 21... Ra8 {[%clk 0:00:34.5]} 22. Rxa8
{[%clk 0:02:40.8]} 22... Rxa8 {[%clk 0:00:35.4]} 23. Nxb7 {[%clk 0:02:41]} 23...
Ra2 {[%clk 0:00:34.9]} 24. Nc5 {[%clk 0:01:44.3]} 24... Rxb2 {[%clk 0:00:32.8]}
25. Rc1 {[%clk 0:01:44.7]} 25... Nxc3 {[%clk 0:00:26.9]} 26. Bf3 {[%clk
0:01:35.7]} 26... Na2 {[%clk 0:00:19.1]} 27. Ra1 {[%clk 0:01:31]} 27... Nb4
{[%clk 0:00:19.3]} 28. Kg2 {[%clk 0:01:25.4]} 28... Rd2 {[%clk 0:00:19.3]} 29.
Ra8+ {[%clk 0:01:21.5]} 29... Kh7 {[%clk 0:00:19.2]} 30. Rd8 {[%clk 0:01:21.9]}
30... Nc2 {[%clk 0:00:17.8]} 31. Bxc6 {[%clk 0:01:16.9]} 31... Rxd4 {[%clk
0:00:18]} 32. Rxd4 {[%clk 0:01:09.4]} 32... Nxd4 {[%clk 0:00:18.9]} 33. Be8
{[%clk 0:01:09.3]} 33... f6 {[%clk 0:00:17]} 34. b4 {[%clk 0:01:09.1]} 34... e5
{[%clk 0:00:14.7]} 35. b5 {[%clk 0:01:09.1]} 35... Kg8 {[%clk 0:00:08.7]} 36. b6
{[%clk 0:01:08.9]} 36... Bg4 {[%clk 0:00:03.9]} 37. b7 {[%clk 0:00:57.4]} 37...
Bf3+ {[%clk 0:00:04.8]} 38. Kf1 {[%clk 0:00:57.8]} 38... Bxb7 {[%clk 0:00:03.5]}
39. Nxb7 {[%clk 0:00:58.7]} 39... Kf8 {[%clk 0:00:03.6]} 40. Ba4 {[%clk
0:00:59.1]} 40... Ke7 {[%clk 0:00:04.2]} 41. Nc5 {[%clk 0:00:58.6]} 41... g5
{[%clk 0:00:04.6]} 42. Bd1 {[%clk 0:00:56.4]} 42... Kd6 {[%clk 0:00:03]} 43.
Ne4+ {[%clk 0:00:56.5]} 43... Ke6 {[%clk 0:00:03.4]} 44. Kg2 {[%clk 0:00:49.7]}
44... f5 {[%clk 0:00:03.6]} 45. Nc5+ {[%clk 0:00:50.1]} 45... Kd5 {[%clk
0:00:03.6]} 46. Nd7 {[%clk 0:00:49.6]} 46... Ke6 {[%clk 0:00:03.5]} 47. Nb6
{[%clk 0:00:49.2]} 47... e4 {[%clk 0:00:03.5]} 48. Ba4 {[%clk 0:00:46]} 48... f4
{[%clk 0:00:02.8]} 49. Bd1 {[%clk 0:00:28.6]} 49... f3+ {[%clk 0:00:01.4]} 50.
Kf1 {[%clk 0:00:26.8]} 1-0

[Event "*** Titled Tuesday Blitz"]
[Site "Chess.com"]
[Date "2020.04.14"]
[Round "2"]
[White "KuzubovYuriy"]
[Black "PrinceCharming92"]
[Result "1-0"]
[WhiteElo "2792"]
[BlackElo "2340"]
[TimeControl "180+1"]
[EndTime "10:17:52 PDT"]
[Termination "KuzubovYuriy won by resignation"]

1. d4 {[%clk 0:03:00.9]} 1... d5 {[%clk 0:02:59.5]} 2. c4 {[%clk 0:03:00.2]}
2... c6 {[%clk 0:02:59]} 3. Nf3 {[%clk 0:03:00.5]} 3... Nf6 {[%clk 0:02:58.6]}
4. e3 {[%clk 0:03:00.7]} 4... e6 {[%clk 0:02:57.2]} 5. Bd3 {[%clk 0:02:59.3]}
5... Be7 {[%clk 0:02:56.9]} 6. Nbd2 {[%clk 0:02:58.6]} 6... O-O {[%clk
0:02:57.3]} 7. b3 {[%clk 0:02:58.7]} 7... Nbd7 {[%clk 0:02:57.6]} 8. Bb2 {[%clk
0:02:58.6]} 8... b6 {[%clk 0:02:57]} 9. Qe2 {[%clk 0:02:56.5]} 9... Bb7 {[%clk
0:02:57.3]} 10. Ne5 {[%clk 0:02:56.8]} 10... Nxe5 {[%clk 0:02:55.8]} 11. dxe5
{[%clk 0:02:56.6]} 11... Nd7 {[%clk 0:02:56.4]} 12. O-O {[%clk 0:02:51.5]} 12...
Rc8 {[%clk 0:02:56.2]} 13. Rad1 {[%clk 0:02:50.9]} 13... Qc7 {[%clk 0:02:53.9]}
14. f4 {[%clk 0:02:44.5]} 14... Rfd8 {[%clk 0:02:51.7]} 15. Nf3 {[%clk
0:02:31.5]} 15... f5 {[%clk 0:02:49.9]} 16. cxd5 {[%clk 0:02:15.5]} 16... cxd5
{[%clk 0:02:47.2]} 17. Nd4 {[%clk 0:02:16.1]} 17... Nf8 {[%clk 0:02:31.1]} 18.
g4 {[%clk 0:02:14.8]} 18... g6 {[%clk 0:02:23.5]} 19. gxf5 {[%clk 0:02:11.8]}
19... exf5 {[%clk 0:02:23.6]} 20. Rf3 {[%clk 0:02:04.7]} 20... Bc5 {[%clk
0:02:23.1]} 21. Nxf5 {[%clk 0:01:45]} 21... d4 {[%clk 0:02:00.8]} 22. Rg3 {[%clk
0:01:37.5]} 22... Ne6 {[%clk 0:01:41.3]} 23. Bc4 {[%clk 0:01:12.8]} 23... Bd5
{[%clk 0:01:30.1]} 24. Bxd4 {[%clk 0:01:04.8]} 24... Bxd4 {[%clk 0:01:25.4]} 25.
Nxd4 {[%clk 0:01:02.2]} 25... Bxc4 {[%clk 0:01:20.9]} 26. bxc4 {[%clk
0:00:59.8]} 26... Nxd4 {[%clk 0:01:12.7]} 27. Rxd4 {[%clk 0:00:41.6]} 27... Rxd4
{[%clk 0:01:12.6]} 28. exd4 {[%clk 0:00:42.5]} 28... Qxc4 {[%clk 0:01:12.9]} 29.
Qxc4+ {[%clk 0:00:42.1]} 29... Rxc4 {[%clk 0:01:13.8]} 30. Rd3 {[%clk
0:00:38.6]} 30... Kf7 {[%clk 0:01:09.8]} 31. Kf2 {[%clk 0:00:32.1]} 31... Ke6
{[%clk 0:00:59.4]} 32. d5+ {[%clk 0:00:31.7]} 32... Kd7 {[%clk 0:00:59.6]} 33.
Ke3 {[%clk 0:00:30.3]} 33... b5 {[%clk 0:00:54.6]} 34. d6 {[%clk 0:00:28.7]}
34... Rc8 {[%clk 0:00:49.6]} 35. Ke4 {[%clk 0:00:26.7]} 35... Rc4+ {[%clk
0:00:44]} 36. Rd4 {[%clk 0:00:23.5]} 36... Rc1 {[%clk 0:00:40.4]} 37. Kd5 {[%clk
0:00:22.2]} 37... Re1 {[%clk 0:00:40]} 38. Rd2 {[%clk 0:00:19.5]} 38... a5
{[%clk 0:00:37.5]} 39. h4 {[%clk 0:00:18.7]} 39... b4 {[%clk 0:00:37.8]} 40. h5
{[%clk 0:00:17.3]} 40... a4 {[%clk 0:00:37.4]} 41. hxg6 {[%clk 0:00:17.3]} 41...
hxg6 {[%clk 0:00:38.1]} 42. Rh2 {[%clk 0:00:17.5]} 42... Rd1+ {[%clk 0:00:37.7]}
43. Kc5 {[%clk 0:00:17.9]} 43... b3 {[%clk 0:00:38.2]} 44. axb3 {[%clk
0:00:17.7]} 44... axb3 {[%clk 0:00:39.1]} 45. Kc4 {[%clk 0:00:17.3]} 45... Ke6
{[%clk 0:00:31.9]} 46. Kxb3 {[%clk 0:00:17]} 46... Rd4 {[%clk 0:00:29.9]} 47.
Rf2 {[%clk 0:00:15.6]} 47... g5 {[%clk 0:00:22.6]} 48. Kc3 {[%clk 0:00:15.9]}
48... Rd5 {[%clk 0:00:19.9]} 49. f5+ {[%clk 0:00:14]} 49... Kxe5 {[%clk
0:00:20.3]} 50. f6 {[%clk 0:00:14.5]} 50... Rxd6 {[%clk 0:00:19.7]} 51. f7
{[%clk 0:00:14.4]} 51... Rc6+ {[%clk 0:00:20.2]} 52. Kd3 {[%clk 0:00:14.6]}
52... Rc8 {[%clk 0:00:20.6]} 53. f8=Q {[%clk 0:00:14.1]} 53... Rxf8 {[%clk
0:00:20.9]} 54. Rxf8 {[%clk 0:00:14.8]} 1-0

[Event "*** Titled Tuesday Blitz"]
[Site "Chess.com"]
[Date "2020.04.14"]
[Round "2"]
[White "Chichin_chao"]
[Black "GMMarcinDziuba"]
[Result "0-1"]
[WhiteElo "2368"]
[BlackElo "2677"]
[TimeControl "180+1"]
[EndTime "10:17:53 PDT"]
[Termination "GMMarcinDziuba won by resignation"]

1. e4 {[%clk 0:03:00.9]} 1... c6 {[%clk 0:03:00]} 2. d4 {[%clk 0:03:00.5]} 2...
d5 {[%clk 0:03:00.9]} 3. Nd2 {[%clk 0:03:00.6]} 3... dxe4 {[%clk 0:03:00.7]} 4.
Nxe4 {[%clk 0:03:01.3]} 4... Bf5 {[%clk 0:03:00.2]} 5. Ng3 {[%clk 0:03:01.3]}
5... Bg6 {[%clk 0:03:00.3]} 6. h4 {[%clk 0:03:01.6]} 6... h6 {[%clk 0:03:00.6]}
7. Nh3 {[%clk 0:03:01.8]} 7... e6 {[%clk 0:02:59.1]} 8. Nf4 {[%clk 0:03:02.2]}
8... Bh7 {[%clk 0:02:59.2]} 9. Bc4 {[%clk 0:03:02.6]} 9... Nf6 {[%clk
0:02:57.7]} 10. c3 {[%clk 0:03:02.8]} 10... Bd6 {[%clk 0:02:56]} 11. Ngh5 {[%clk
0:03:03.2]} 11... Nxh5 {[%clk 0:02:55.7]} 12. Nxh5 {[%clk 0:03:04.1]} 12... Rg8
{[%clk 0:02:56.1]} 13. Qe2 {[%clk 0:02:56.6]} 13... Nd7 {[%clk 0:02:51.9]} 14.
Be3 {[%clk 0:02:53.8]} 14... Qa5 {[%clk 0:02:30.4]} 15. Nf4 {[%clk 0:02:41.2]}
15... O-O-O {[%clk 0:02:27.4]} 16. Bd3 {[%clk 0:02:40.6]} 16... Bxd3 {[%clk
0:02:22.2]} 17. Nxd3 {[%clk 0:02:41.5]} 17... e5 {[%clk 0:02:12.9]} 18. O-O
{[%clk 0:02:29.8]} 18... e4 {[%clk 0:02:09.5]} 19. Nc5 {[%clk 0:02:28.8]} 19...
Bxc5 {[%clk 0:01:36.9]} 20. dxc5 {[%clk 0:02:20.1]} 20... f5 {[%clk 0:01:35.4]}
21. b4 {[%clk 0:02:15.9]} 21... Qb5 {[%clk 0:01:32.7]} 22. Qh5 {[%clk
0:01:39.5]} 22... Rdf8 {[%clk 0:00:56]} 23. Rfd1 {[%clk 0:01:27.5]} 23... Ne5
{[%clk 0:00:47.6]} 24. Rd6 {[%clk 0:00:49.9]} 24... g6 {[%clk 0:00:25.1]} 25.
Qd1 {[%clk 0:00:43.3]} 25... Nc4 {[%clk 0:00:20.1]} 26. Bf4 {[%clk 0:00:36.8]}
26... g5 {[%clk 0:00:18]} 27. a4 {[%clk 0:00:28.1]} 27... Qa6 {[%clk 0:00:18]}
28. b5 {[%clk 0:00:27.7]} 28... Qa5 {[%clk 0:00:18.4]} 29. bxc6 {[%clk
0:00:26.1]} 29... gxf4 {[%clk 0:00:17.9]} 30. cxb7+ {[%clk 0:00:26.3]} 30... Kb8
{[%clk 0:00:18]} 31. Rd7 {[%clk 0:00:20.6]} 31... Qxc5 {[%clk 0:00:18]} 32. Rb1
{[%clk 0:00:17.8]} 32... f3 {[%clk 0:00:16.6]} 33. Rd4 {[%clk 0:00:12.5]} 33...
Rxg2+ {[%clk 0:00:15.1]} 34. Kf1 {[%clk 0:00:13.1]} 34... Qc7 {[%clk 0:00:12.7]}
35. Rd7 {[%clk 0:00:07.6]} 35... Rxf2+ {[%clk 0:00:11.1]} 36. Ke1 {[%clk
0:00:05]} 36... Re2+ {[%clk 0:00:09.1]} 37. Kf1 {[%clk 0:00:05.1]} 37... Ne3+
{[%clk 0:00:08.1]} 38. Kg1 {[%clk 0:00:05.1]} 38... Nxd1 {[%clk 0:00:06.9]} 39.
Rxc7 {[%clk 0:00:03.5]} 39... Kxc7 {[%clk 0:00:07.1]} 40. Rxd1 {[%clk
0:00:03.5]} 40... Kxb7 {[%clk 0:00:07]} 41. Rd7+ {[%clk 0:00:02.8]} 41... Kc6
{[%clk 0:00:06.9]} 0-1